bitfinex/quotes_SOLUSD_20250917
["timestamp","ask_amount","ask_price","bid_price","bid_amount"]
[1758149712640,2.6221603,245.83,245.77,0.7]
[1758149713062,2.6221603,245.83,245.78,35.82]
[1758149713373,2.6221603,245.83,245.78,36.52]
[1758149713558,2.6221603,245.81,245.75,0.7]
[1758149713866,12.04698451,245.85,245.76,35.78]
[1758149713867,2.6221603,245.78,245.76,35.78]
[1758149714058,3.2821603,245.77,245.72,0.5]
[1758149714256,3.2821603,245.77,245.73,35.76]
[1758149714563,6.69116037,245.77,245.74,35.76]
[1758149714735,0.66,245.76,245.72,0.5]
[1758149714938,2.6221603,245.75,245.72,0.5]
[1758149715141,2.6221603,245.75,245.73,35.74]
[1758149715734,2.6221603,245.74,245.72,0.5]
[1758149715944,2.6221603,245.74,245.73,35.7]
[1758149716159,0.66,245.76,245.72,0.5]
[1758149716363,2.6221603,245.75,245.73,35.68]
[1758149716569,7.35150188,245.74,245.73,35.68]
[1758149716741,7.35150188,245.74,245.72,0.5]
[1758149716943,2.6221603,245.73,245.72,0.5]
[1758149717746,10.17211213,245.77,245.72,0.5]
[1758149717747,6.69123544,245.76,245.72,0.5]
[1758149717948,2.6221603,245.76,245.72,0.5]
[1758149718152,2.6221603,245.77,245.72,0.5]
[1758149718347,2.6221603,245.77,245.72,1.2]
[1758149718942,2.6221603,245.82,245.74,2.6221603]
[1758149719267,6.69022513,245.82,245.75,0.7]
[1758149719638,6.69022513,245.82,245.76,35.56]
[1758149719956,4.06806483,245.82,245.76,35.56]
[1758149720155,10.60161438,245.85,245.77,3.3221603]
[1758149720359,14.66914669,245.85,245.78,0.7]
[1758149720559,7.97945408,245.85,245.79,4.06851377]
[1758149720882,7.97945408,245.85,245.8,36.22]
[1758149721058,7.97945408,245.85,245.81,3.3221603]
[1758149721261,7.97945408,245.85,245.82,0.7]
[1758149721576,7.97945408,245.85,245.83,0.7]
[1758149721780,7.97945408,245.85,245.84,35.5]
[1758149722279,7.97945408,245.85,245.84,35.48]
[1758149722563,7.97945408,245.85,245.8,3.02899512]
[1758149722564,7.97945408,245.85,245.8,5.17513207]
[1758149722767,7.97945408,245.85,245.81,35.46]
[1758149722768,2.6221603,245.82,245.81,35.46]
[1758149722965,2.6221603,245.82,245.76,0.7]
[1758149723270,2.6221603,245.82,245.72,8.47945408]
[1758149723271,2.6221603,245.8,245.77,35.44]
[1758149723451,2.6221603,245.81,245.77,35.44]
[1758149723654,2.6221603,245.79,245.78,35.42]
[1758149723850,3.2821603,245.79,245.72,0.5]
[1758149724055,2.6221603,245.78,245.73,36.12]
[1758149724264,2.6221603,245.79,245.74,0.7]
[1758149724460,2.6221603,245.79,245.75,0.7]
[1758149724973,6.6908396,245.78,245.73,35.42]
[1758149725147,2.6221603,245.79,245.73,39.48946224]
[1758149725353,2.6221603,245.79,245.74,35.4]
[1758149725553,2.6221603,245.75,245.72,0.53]
[1758149725772,2.6221603,245.74,245.72,0.53]
[1758149725975,2.6221603,245.74,245.73,35.36]
[1758149726748,4.06950718,245.73,245.72,0.53]
[1758149726955,7.35166748,245.73,245.72,35.87]
[1758149727363,2.6221603,245.73,245.72,35.87]
[1758149727572,4.06938268,245.74,245.72,35.87]
[1758149727870,6.33078144,245.73,245.72,35.87]
[1758149728180,4.72938268,245.74,245.72,35.87]
[1758149728181,4.72938268,245.74,245.72,35.81]
[1758149728406,6.33078144,245.73,245.72,35.81]
[1758149728858,4.06938268,245.74,245.72,35.81]
[1758149729053,4.72938268,245.74,245.73,35.26]
[1758149729252,10.40016412,245.74,245.73,35.26]
[1758149729462,4.06938268,245.74,245.73,35.26]
[1758149729664,11.06016412,245.74,245.73,35.24]
[1758149729860,11.06016412,245.74,245.72,0.53]
[1758149730176,6.99078144,245.73,245.72,0.03]
[1758149730361,0.66,245.73,245.72,0.03]
[1758149730549,6.33078144,245.73,245.72,0.03]
[1758149731178,6.99078144,245.73,245.72,0.03]
[1758149731559,0.66,245.73,245.72,0.03]
[1758149731760,6.99078144,245.73,245.72,0.03]
[1758149733967,26.0,245.71,245.7,0.03]
[1758149734166,39.59559401,245.71,245.7,0.03]
[1758149734360,40.58991715,245.71,245.7,0.03]
[1758149734774,55.67772683,245.71,245.7,0.03]
[1758149734960,45.92637545,245.65,245.55,2.12669359]
[1758149735160,0.28432314,245.64,245.55,2.12669359]
[1758149735359,26.0,245.59,245.52,0.03]
[1758149735574,0.71,245.58,245.52,0.03]
[1758149736067,6.33078144,245.53,245.52,0.03]
[1758149738187,10.40360349,245.53,245.52,0.03]
[1758149738881,11.11360349,245.53,245.52,0.03]
[1758149740282,24.7091975,245.53,245.52,0.03]
[1758149740490,24.7091975,245.53,245.49,0.03]
[1758149740491,39.59559401,245.5,245.49,1e-08]
[1758149740665,52.25715689,245.5,245.49,1e-08]
[1758149740870,13.59559401,245.49,245.47,1e-08]
[1758149741073,26.25715689,245.48,245.47,1e-08]
[1758149741384,26.0,245.46,245.45,1e-08]
[1758149741588,45.92637545,245.46,245.45,1e-08]
[1758149741890,46.63637545,245.46,245.45,1e-08]
[1758149742079,50.71035899,245.46,245.45,1e-08]
[1758149743074,13.59559401,245.45,245.44,0.03]
[1758149743407,13.59559401,245.41,245.36,0.2]
[1758149743593,6.33078144,245.37,245.36,0.2]
[1758149743887,6.33078144,245.42,245.37,0.68]
[1758149744074,19.92637545,245.48,245.36,0.7]
[1758149744274,4.07381757,245.47,245.36,4.95560507]
[1758149744480,6.33078144,245.42,245.36,4.95560507]
[1758149744677,6.33078144,245.42,245.36,0.88]
[1758149745276,6.33078144,245.44,245.36,11.2863588]
[1758149745486,6.33078144,245.44,245.36,7.21078144]
[1758149745684,6.33078144,245.42,245.36,0.88]
[1758149746393,14.25894239,245.46,245.36,0.88]
[1758149746597,6.33078144,245.43,245.36,0.88]
[1758149746785,6.33078144,245.44,245.37,6.33078144]
[1758149746977,6.33078144,245.44,245.38,0.68]
[1758149747874,0.71,245.6,245.43,6.33078144]
[1758149748079,6.33078144,245.58,245.49,6.33078144]
[1758149748291,4.07182702,245.59,245.5,0.68]
[1758149748492,6.33078144,245.57,245.5,0.68]
[1758149748696,0.71,245.58,245.48,6.33078144]
[1758149748999,6.33078144,245.55,245.48,6.33078144]
[1758149749200,0.71,245.58,245.48,6.33078144]
[1758149749498,6.33078144,245.55,245.48,6.33078144]
[1758149749805,38.54757001,245.64,245.5,6.33078144]
[1758149749806,0.71,245.6,245.5,6.33078144]
[1758149749987,0.71,245.6,245.49,0.68]
[1758149749988,6.33078144,245.56,245.49,0.68]
[1758149750189,6.33078144,245.56,245.49,7.01078144]
[1758149751093,0.71,245.6,245.49,0.68]
[1758149751294,6.33078144,245.56,245.49,0.68]
[1758149751688,4.07249032,245.55,245.49,0.68]
[1758149753208,10.40244267,245.6,245.52,6.33078144]
[1758149753422,6.33078144,245.58,245.5,35.76]
[1758149753589,14.25081432,245.6,245.5,0.68]
[1758149753790,6.33078144,245.57,245.5,0.68]
[1758149754722,6.33078144,245.55,245.46,1.18]
[1758149754931,6.33078144,245.55,245.46,36.22]
[1758149755133,6.33078144,245.53,245.46,36.22]
[1758149755307,6.33078144,245.53,245.46,1.18]
[1758149755828,10.40369495,245.53,245.46,0.68]
[1758149756197,4.07291351,245.53,245.46,0.68]
[1758149757116,4.07291351,245.53,245.46,7.01078144]
[1758149757313,4.07291351,245.53,245.46,42.05078144]
[1758149757523,4.07291351,245.53,245.46,35.66]
[1758149757818,6.33078144,245.52,245.46,0.68]
[1758149758600,4.07291351,245.53,245.46,7.01078144]
[1758149758805,4.07263252,245.55,245.48,6.33078144]
[1758149759006,4.0723001,245.57,245.52,6.33078144]
[1758149759206,4.0723001,245.57,245.53,0.72]
[1758149759425,4.0723001,245.57,245.54,0.72]
[1758149759606,10.17789412,245.64,245.55,0.72]
[1758149759806,6.33078144,245.62,245.55,0.72]
[1758149760614,7.04078144,245.62,245.54,6.33078144]
[1758149760815,0.71,245.61,245.52,41.21078144]
[1758149761030,20.0,245.74,245.52,41.21078144]
[1758149761031,0.71,245.65,245.57,6.33078144]
[1758149761212,4.07066677,245.66,245.59,6.33078144]
[1758149761530,6.33078144,245.65,245.58,0.72]
[1758149762126,14.2473337,245.66,245.58,0.72]
[1758149762430,4.06967279,245.72,245.65,6.33078144]
[1758149762637,4.06967279,245.72,245.66,0.69]
[1758149763936,10.40045423,245.72,245.66,0.69]
[1758149764706,6.33078144,245.71,245.64,41.80078144]
[1758149764909,4.0694371,245.74,245.66,6.33078144]
[1758149765242,4.0694371,245.74,245.7,6.33078144]
[1758149765423,4.1291479,245.76,245.71,7.02078144]
[1758149765614,4.1291479,245.76,245.72,0.69]
[1758149765812,4.1291479,245.76,245.64,35.18709982]
[1758149765813,8.50289544,245.76,245.69,5.06374754]
[1758149766014,8.50289544,245.76,245.7,34.72]
[1758149766015,4.37374754,245.75,245.7,34.72]
[1758149766214,4.37374754,245.75,245.68,4.37374754]
[1758149766433,4.37374754,245.75,245.7,35.39]
[1758149766749,4.37374754,245.71,245.65,0.69]
[1758149766914,4.37374754,245.72,245.67,34.7]
[1758149767437,9.15358596,245.71,245.66,34.68]
[1758149767807,18.61818202,245.71,245.66,35.37]
[1758149768013,14.24443448,245.71,245.66,35.37]
[1758149768215,4.37374754,245.67,245.61,0.69]
[1758149768430,4.37374754,245.67,245.58,6.33078144]
[1758149768431,4.37374754,245.66,245.6,34.64]
[1758149768850,4.37374754,245.64,245.59,0.69]
[1758149769014,4.37374754,245.64,245.6,34.64]
[1758149769215,4.37374754,245.63,245.6,34.64]
[1758149769436,4.07132969,245.62,245.6,34.62]
[1758149769644,4.07110662,245.64,245.61,0.69]
[1758149770040,8.44485416,245.64,245.61,0.69]
[1758149770640,4.37374754,245.63,245.6,34.58]
[1758149770825,4.37374754,245.62,245.6,34.58]
[1758149771023,4.07110662,245.64,245.6,34.58]
[1758149771545,4.07110662,245.64,245.61,0.69]
[1758149771848,8.44485416,245.64,245.6,34.58]
[1758149772138,4.37374754,245.64,245.6,35.23]
[1758149772438,4.37374754,245.62,245.6,34.54]
[1758149772638,4.07087056,245.65,245.6,34.54]
[1758149772841,4.78087056,245.65,245.6,34.54]
[1758149773047,4.78087056,245.65,245.58,0.69]
[1758149773253,4.78087056,245.65,245.59,34.52]
[1758149773550,14.95795177,245.65,245.58,0.69]
[1758149773721,14.95795177,245.65,245.59,34.5]
[1758149773918,4.37374754,245.6,245.5,4.37374754]
[1758149774131,4.37374754,245.55,245.51,34.48]
[1758149774346,4.37374754,245.57,245.52,35.17]
[1758149775015,4.37374754,245.57,245.53,0.69]
[1758149775436,4.07199283,245.58,245.53,0.69]
[1758149775619,4.37374754,245.57,245.54,34.44]
[1758149776033,4.37374754,245.56,245.54,34.44]
[1758149776545,4.07249032,245.55,245.54,34.44]
[1758149776741,4.37374754,245.56,245.52,0.69]
[1758149776949,4.07194625,245.59,245.54,0.69]
[1758149777125,8.44569379,245.59,245.54,0.69]
[1758149777854,4.07194625,245.59,245.55,0.69]
[1758149778029,4.07194625,245.59,245.54,4.37374754]
[1758149778030,0.71,245.7,245.58,4.37374754]
[1758149778236,0.71,245.74,245.63,4.37374754]
[1758149778437,4.37374754,245.71,245.64,5.06374754]
[1758149778631,18.61876178,245.7,245.65,34.38]
[1758149778837,4.37374754,245.69,245.65,34.38]
[1758149779143,4.07000407,245.7,245.66,5.06374754]
[1758149779351,4.06979947,245.72,245.67,0.69]
[1758149779537,4.06979947,245.72,245.66,4.37374754]
[1758149779725,4.06979947,245.72,245.67,0.69]
[1758149779926,4.06979947,245.72,245.65,34.38]
[1758149779927,4.06950083,245.74,245.69,4.37374754]
[1758149780127,8.50286621,245.76,245.7,0.69]
[1758149780522,4.37374754,245.73,245.6,10.46310998]
[1758149780738,4.37374754,245.68,245.62,4.37374754]
[1758149780960,4.37374754,245.68,245.61,35.01]
[1758149781242,4.37374754,245.66,245.62,34.3]
[1758149781624,4.37374754,245.68,245.62,34.3]
[1758149781831,0.06,245.66,245.63,0.69]
[1758149782530,4.13082331,245.66,245.63,0.69]
[1758149782732,4.13082331,245.66,245.64,34.28]
[1758149783044,4.13082331,245.66,245.64,34.26]
[1758149783551,8.50457085,245.66,245.64,34.26]
[1758149783842,4.13082331,245.66,245.6,5.06374754]
[1758149784050,8.50457085,245.66,245.61,34.22]
[1758149784250,4.37374754,245.64,245.58,0.69]
[1758149784438,5.14374754,245.66,245.59,38.59374754]
[1758149784632,4.43374754,245.66,245.6,0.69]
[1758149784846,0.06,245.66,245.64,4.37374754]
[1758149785039,0.06,245.66,245.65,34.89]
[1758149785233,0.06,245.66,245.65,39.26374754]
[1758149785633,0.06,245.66,245.65,34.89]
[1758149786045,0.06,245.66,245.65,39.26374754]
[1758149787368,0.06,245.66,245.65,0.69]
[1758149787580,0.06,245.66,245.65,39.26374754]
[1758149788370,0.06,245.66,245.65,38.51374754]
[1758149789354,0.06,245.66,245.65,39.20374754]
[1758149789870,0.06,245.66,245.65,39.16374754]
[1758149790444,0.06,245.66,245.65,43.23458002]
[1758149791669,0.06,245.66,245.65,43.51890316]
[1758149792945,0.06,245.66,245.65,43.9259864]
[1758149794665,1e-08,245.71,245.7,0.14216157]
[1758149794963,0.06,245.76,245.7,70.07881862]
[1758149795153,0.06,245.76,245.75,4.37374754]
[1758149795353,0.06,245.76,245.75,38.33374754]
[1758149795559,0.06,245.76,245.75,38.99374754]
[1758149796261,0.06,245.76,245.75,43.06292353]
[1758149797657,0.06,245.76,245.75,38.68917599]
[1758149797976,0.06,245.76,245.75,43.06292353]
[1758149798862,0.06,245.76,245.75,9.10292353]
[1758149799064,0.06,245.76,245.75,42.96292353]
[1758149800279,0.06,245.76,245.75,33.84]
[1758149801749,0.06,245.76,245.75,38.21374754]
[1758149802859,0.06,245.76,245.75,42.94292353]
[1758149804257,0.06,245.76,245.75,38.56917599]
[1758149804458,0.06,245.76,245.75,42.94292353]
[1758149804659,0.06,245.76,245.75,38.56917599]
[1758149804860,0.06,245.76,245.75,38.13374754]
[1758149806157,0.06,245.76,245.75,38.79374754]
[1758149806352,0.06,245.76,245.75,9.10292353]
[1758149806559,0.06,245.76,245.75,38.73374754]
[1758149806761,0.06,245.76,245.75,4.37374754]
[1758149806958,0.06,245.76,245.75,38.07374754]
[1758149807878,0.06,245.76,245.75,38.73374754]
[1758149808061,0.06,245.76,245.75,42.80292353]
[1758149809179,0.06,245.76,245.75,8.44292353]
[1758149809360,0.06,245.76,245.75,37.76917599]
[1758149809563,0.06,245.76,245.75,42.14292353]
[1758149809879,0.06,245.76,245.75,42.80292353]
[1758149810482,0.06,245.76,245.75,9.10292353]
[1758149810790,0.06,245.76,245.75,4.06917599]
[1758149810969,0.06,245.76,245.75,38.07374754]
[1758149811877,0.06,245.76,245.75,4.37374754]
[1758149812059,0.06,245.76,245.75,38.07374754]
[1758149812459,0.06,245.76,245.75,4.37374754]
[1758149812673,0.06,245.76,245.75,38.07374754]
[1758149813287,0.06,245.76,245.75,4.37374754]
[1758149813480,0.06,245.76,245.75,33.7]
[1758149814172,0.06,245.76,245.75,38.07374754]
[1758149814173,0.75,245.76,245.75,38.07374754]
[1758149814694,0.06,245.76,245.74,4.37374754]
[1758149814895,0.06,245.76,245.75,33.7]
[1758149815197,0.69,245.75,245.72,0.5]
[1758149815375,0.69,245.74,245.73,33.7]
[1758149815698,0.69,245.74,245.72,0.5]
[1758149815903,0.06,245.76,245.73,33.7]
[1758149816185,0.75,245.76,245.73,35.37941275]
[1758149816784,0.69,245.75,245.73,35.37941275]
[1758149816989,4.06917599,245.75,245.74,33.7]
[1758149817298,4.75917599,245.75,245.74,33.7]
[1758149817875,9.13251843,245.75,245.72,0.5]
[1758149818075,9.13251843,245.75,245.73,33.7]
[1758149818286,0.68,245.74,245.73,33.7]
[1758149818665,0.68,245.74,245.72,0.5]
[1758149818900,0.68,245.73,245.72,0.5]
[1758149819080,4.74950718,245.73,245.72,34.2]
[1758149819872,4.74950718,245.73,245.72,0.5]
[1758149820072,4.74950718,245.73,245.72,34.2]
[1758149820379,9.12284962,245.73,245.72,0.5]
[1758149820578,9.12284962,245.73,245.68,0.03]
[1758149820579,13.59559401,245.72,245.68,0.03]
[1758149820780,4.37334244,245.69,245.68,0.03]
[1758149821301,5.05334244,245.69,245.68,0.03]
[1758149822181,4.75016972,245.69,245.68,0.03]
[1758149822690,20.40290029,245.79,245.68,38.78334244]
[1758149822691,0.72,245.74,245.68,38.78334244]
[1758149822879,4.78883967,245.78,245.72,4.37334244]
[1758149823197,0.06,245.79,245.73,38.07334244]
[1758149823401,0.06,245.79,245.74,0.68]
[1758149823710,0.06,245.79,245.73,33.7]
[1758149823911,0.78,245.79,245.74,33.7]
[1758149824204,0.06,245.79,245.74,33.7]
[1758149824407,0.72,245.78,245.75,33.7]
[1758149824776,0.06,245.79,245.75,33.7]
[1758149824987,0.06,245.79,245.75,38.07334244]
[1758149825208,0.06,245.79,245.75,38.75334244]
[1758149825516,0.06,245.79,245.75,34.38]
[1758149825687,0.06,245.79,245.75,38.75334244]
[1758149825874,0.06,245.79,245.75,40.70558485]
[1758149826280,0.06,245.79,245.75,44.77476084]
[1758149826701,0.06,245.79,245.75,38.44917599]
[1758149827391,0.06,245.79,245.75,44.77476084]
[1758149827588,0.06,245.79,245.75,45.05908398]
[1758149827790,0.06,245.79,245.75,45.46600157]
[1758149828189,0.06,245.79,245.75,11.76600157]
[1758149828708,0.06,245.79,245.75,40.00558485]
[1758149829081,0.06,245.79,245.75,6.32558485]
[1758149829392,0.06,245.79,245.75,34.36]
[1758149829589,0.06,245.79,245.75,40.68558485]
[1758149830526,0.72,245.78,245.7,0.14216157]
[1758149830688,4.78870306,245.78,245.74,6.32558485]
[1758149830890,4.78870306,245.78,245.75,33.68]
[1758149831619,11.17466217,245.76,245.75,33.68]
[1758149831788,11.17466217,245.76,245.69,6.32558485]
[1758149831990,6.32558485,245.74,245.7,33.68]
[1758149832190,7.04558485,245.73,245.68,0.03]
[1758149832409,4.06967279,245.72,245.68,0.03]
[1758149832711,0.06,245.76,245.71,6.32558485]
[1758149833012,0.72,245.75,245.72,33.68]
[1758149833204,0.72,245.75,245.73,33.68]
[1758149833520,0.06,245.76,245.73,33.68]
[1758149833710,0.06,245.76,245.75,6.32558485]
[1758149834908,0.06,245.76,245.75,40.00558485]
[1758149835306,0.06,245.76,245.75,33.68]
[1758149835495,0.06,245.76,245.75,40.00558485]
[1758149836011,0.06,245.76,245.72,6.32558485]
[1758149836209,0.72,245.75,245.68,0.03]
[1758149836421,4.78917599,245.75,245.7,6.32558485]
[1758149836602,0.72,245.74,245.71,33.68]
[1758149836999,4.78937036,245.74,245.7,6.32558485]
[1758149837195,4.78937036,245.74,245.68,0.03]
[1758149837196,4.06937036,245.74,245.71,33.68]
[1758149837393,4.12913509,245.76,245.71,33.68]
[1758149837596,4.12913509,245.76,245.71,40.00558485]
[1758149837795,4.84913509,245.76,245.71,40.00558485]
[1758149838298,0.72,245.75,245.71,40.00558485]
[1758149839100,0.72,245.75,245.68,4.78030296]
[1758149839415,0.06,245.76,245.71,6.32558485]
[1758149839790,4.12904122,245.76,245.71,6.32558485]
[1758149840433,4.12904122,245.76,245.71,0.68]
[1758149840722,4.84904122,245.76,245.7,6.32558485]
[1758149840910,4.84904122,245.76,245.71,33.66]
[1758149840911,4.06934158,245.74,245.71,33.66]
[1758149841106,4.78934158,245.74,245.71,33.66]
[1758149841489,4.06934158,245.74,245.71,33.66]
[1758149841690,4.06934158,245.74,245.69,6.32558485]
[1758149841895,4.78934158,245.74,245.7,33.66]
[1758149842111,0.06,245.76,245.71,1.08698384]
[1758149842318,0.06,245.76,245.75,6.32558485]
[1758149842507,0.06,245.76,245.75,7.00558485]
[1758149842995,0.06,245.76,245.75,0.68]
[1758149843198,0.06,245.76,245.75,40.66558485]
[1758149843416,0.06,245.76,245.75,44.73476084]
[1758149844798,0.06,245.76,245.75,40.66558485]
[1758149845515,0.06,245.76,245.75,44.73476084]
[1758149846221,0.06,245.76,245.73,0.40695071]
[1758149846422,0.72,245.75,245.74,33.66]
[1758149846797,0.06,245.76,245.74,33.66]
[1758149846994,4.84901739,245.76,245.74,33.66]
[1758149847223,4.12901739,245.76,245.74,33.66]
[1758149847524,4.12901739,245.76,245.74,40.66558485]
[1758149847525,0.06,245.76,245.74,40.66558485]
[1758149847696,0.06,245.76,245.75,6.32558485]
[1758149847892,0.06,245.76,245.69,4.07016972]
[1758149848120,4.1290224,245.76,245.71,6.32558485]
[1758149848420,0.06,245.76,245.72,7.00558485]
[1758149848591,0.06,245.76,245.7,33.66]
[1758149848798,0.06,245.76,245.73,6.32558485]
[1758149848999,0.06,245.76,245.74,33.66]
[1758149849198,0.06,245.76,245.74,34.34]
[1758149849620,0.06,245.76,245.74,33.66]
[1758149850618,0.06,245.76,245.73,6.32558485]
[1758149850930,0.06,245.76,245.75,33.66]
[1758149851817,0.06,245.76,245.75,34.34]
[1758149852006,0.06,245.76,245.75,40.66558485]
[1758149852207,0.06,245.76,245.75,6.32558485]
[1758149852410,0.06,245.76,245.75,40.64558485]
[1758149853228,0.06,245.76,245.75,44.71476084]
[1758149854602,0.06,245.76,245.75,0.68]
[1758149854830,0.06,245.76,245.75,34.32]
[1758149855041,0.06,245.76,245.75,44.71476084]
[1758149856046,0.06,245.76,245.75,11.07476084]
[1758149856709,0.06,245.76,245.75,44.71476084]
[1758149858322,0.06,245.76,245.74,0.14216157]
[1758149858524,0.06,245.76,245.75,39.96558485]
[1758149859029,0.06,245.76,245.75,6.32558485]
[1758149859204,0.06,245.76,245.75,39.96558485]
[1758149859630,0.06,245.76,245.75,44.03476084]
[1758149859835,0.06,245.76,245.75,44.75476084]
[1758149860053,0.06,245.76,245.75,44.03476084]
[1758149860222,0.06,245.76,245.75,10.39476084]
[1758149860417,0.06,245.76,245.75,44.01476084]
[1758149860621,0.06,245.76,245.75,39.94558485]
[1758149860848,0.06,245.76,245.75,44.73476084]
[1758149862364,0.06,245.76,245.75,39.94558485]
[1758149863133,0.06,245.76,245.75,6.32558485]
[1758149863645,0.06,245.76,245.75,39.94558485]
[1758149863845,0.06,245.76,245.75,44.01476084]
[1758149864044,0.06,245.76,245.75,44.73476084]
[1758149864921,0.06,245.76,245.75,6.32558485]
[1758149865119,0.06,245.76,245.75,39.94558485]
[1758149865321,0.06,245.76,245.73,4.06949409]
[1758149865521,0.06,245.76,245.75,6.32558485]
[1758149866352,0.74,245.76,245.75,33.62]
[1758149866648,0.06,245.76,245.75,33.62]
[1758149866848,0.74,245.76,245.73,6.32558485]
[1758149867251,0.74,245.76,245.74,33.62]
[1758149867426,0.74,245.76,245.73,6.32558485]
[1758149867628,4.80901041,245.76,245.74,39.94558485]
[1758149868224,0.06,245.76,245.74,39.94558485]
[1758149871524,0.06,245.76,245.75,7.04558485]
[1758149871722,0.06,245.76,245.75,11.11476084]
[1758149872258,0.06,245.76,245.75,7.04558485]
[1758149872548,0.06,245.76,245.75,44.71476084]
[1758149872925,0.06,245.76,245.75,43.99476084]
[1758149873155,0.06,245.76,245.75,44.71476084]
[1758149875243,0.06,245.76,245.75,38.38917599]
[1758149875439,0.06,245.76,245.75,44.71476084]
[1758149875928,0.06,245.76,245.75,33.6]
[1758149876240,0.06,245.76,245.75,39.92558485]
[1758149876935,0.06,245.76,245.75,33.6]
[1758149877351,0.06,245.76,245.74,6.32558485]
[1758149877550,0.06,245.76,245.75,33.58]
[1758149878249,0.74,245.76,245.75,33.58]
[1758149878726,4.80901041,245.76,245.72,6.32558485]
[1758149878927,4.12901041,245.76,245.73,33.58]
[1758149879145,7.00558485,245.75,245.73,33.58]
[1758149879335,4.74934158,245.74,245.73,33.58]
[1758149880559,0.68,245.74,245.73,33.58]
[1758149881362,4.74934158,245.74,245.73,33.58]
[1758149882561,0.68,245.74,245.73,33.58]
[1758149883063,0.06,245.76,245.73,36.87421079]
[1758149883361,0.06,245.76,245.75,2.62421079]
[1758149883565,0.77,245.76,245.73,2.62421079]
[1758149883865,0.06,245.76,245.74,36.18421079]
[1758149884049,0.06,245.76,245.75,33.56]
[1758149884875,4.83902392,245.76,245.71,0.03]
[1758149885082,15.01154996,245.76,245.72,33.56]
[1758149885278,2.62421079,245.73,245.72,33.56]
[1758149885584,7.40371797,245.73,245.71,0.03]
[1758149885750,2.62421079,245.72,245.71,33.59]
[1758149885952,3.33421079,245.72,245.71,33.59]
[1758149886259,0.71,245.72,245.71,33.59]
[1758149886647,0.06,245.76,245.71,40.95400503]
[1758149886847,0.06,245.76,245.72,0.67]
[1758149887083,0.06,245.76,245.73,2.62421079]
[1758149887262,0.06,245.76,245.72,3.29421079]
[1758149887451,0.06,245.76,245.72,7.36382169]
[1758149887650,0.06,245.76,245.75,2.62421079]
[1758149887854,0.06,245.76,245.75,35.2388138]
[1758149888157,0.06,245.76,245.75,33.56]
[1758149888482,0.06,245.76,245.75,35.2388138]
[1758149889685,0.06,245.76,245.75,33.56]
[1758149890066,4.8391172,245.76,245.75,33.56]
[1758149890267,4.8391172,245.76,245.74,33.56]
[1758149890471,4.8391172,245.76,245.64,6.7152552]
[1758149890472,0.71,245.75,245.7,1.6788138]
[1758149890660,2.3888138,245.74,245.67,1.6788138]
[1758149890855,4.1291172,245.76,245.68,35.2188138]
[1758149891085,1.6788138,245.75,245.69,33.54]
[1758149891983,4.1291172,245.76,245.72,4.37438967]
[1758149892286,4.1291172,245.76,245.73,37.91438967]
[1758149892669,4.1291172,245.76,245.73,33.54]
[1758149894002,5.08438967,245.75,245.73,33.54]
[1758149894165,4.1291172,245.76,245.71,33.54]
[1758149894166,5.08438967,245.74,245.71,33.54]
[1758149894362,26.0,245.7,245.59,0.67]
[1758149894677,0.71,245.7,245.62,4.37438967]
[1758149894870,0.71,245.7,245.63,8.86]
[1758149894871,4.37438967,245.68,245.63,8.86]
[1758149895289,4.37438967,245.68,245.63,9.53]